[Event "ISR-chT 2018"]
[Site "Israel"]
[Date "2018.01.05"]
[Round "1"]
[White "Boruchovsky, Avital"]
[Black "Reshef, Omer"]
[Result "1/2-1/2"]
[ECO "D00"]
[WhiteElo "2542"]
[BlackElo "2467"]
[PlyCount "105"]
[EventDate "2018.??.??"]
[EventType "team-tourn"]
[EventCountry "ISR"]
[TimeControl "40/5400+30:1800+30"]
[WhiteClock "0:57:29"]
[BlackClock "0:22:14"]

1. d4 {[%emt 0:04:17]} d5 {[%emt 0:00:03]} 2. Bf4 {[%emt 0:00:28]} Nf6 {[%emt 0:00:33]} 3. e3 {[%emt 0:00:14]} c5 {[%emt 0:00:40]} 4. Nf3 {[%emt 0:01:40]} Nc6 {[%emt 0:00:07]} 5. c3 {[%emt 0:00:48]} Qb6 {[%emt 0:01:27]} 6. Qc2 {[%emt 0:07:33]} g6 {[%emt 0:11:44]} 7. Nbd2 {[%emt 0:03:06]} Bg7 {[%emt 0:01:00]} 8. h3 {[%emt 0:10:53]} O-O {[%emt 0:00:31]} 9. Be2 {[%emt 0:04:04]} Bf5 {[%emt 0:01:16]} 10. Qb3 {[%emt 0:01:23]} c4 {[%emt 0:08:05]} 11. Qxb6 {[%emt 0:00:27]} axb6 {[%emt 0:00:04]} 12. g4 {[%emt 0:00:31]} Bd7 {[%emt 0:04:18]} 13. Ne5 {[%emt 0:06:53]} Bc8 {[%emt 0:03:14]} 14. Bf3 {[%emt 0:08:41]} e6 {[%emt 0:01:51]} 15. O-O {[%emt 0:01:38]} Nd7 {[%emt 0:06:39]} 16. Nxd7 {[%emt 0:03:53]} Bxd7 {[%emt 0:00:06]} 17. Rfd1 {[%emt 0:05:34]} f5 {[%emt 0:04:43]} 18. g5 {[%emt 0:00:28]} b5 {[%emt 0:00:40]} 19. a3 {[%emt 0:00:42]} Nd8 {[%emt 0:08:20]} 20. Be2 {[%emt 0:03:22]} Nf7 {[%emt 0:00:38]} 21. Nf3 {[%emt 0:00:06]} Rfe8 {[%emt 0:00:40]} 22. h4 {[%emt 0:01:13]} Bc6 {[%emt 0:02:47]} 23. Ne5 {[%emt 0:01:02]} Nxe5 {[%emt 0:00:21]} 24. Bxe5 {[%emt 0:00:07]} Bxe5 {[%emt 0:03:13]} 25. dxe5 {[%emt 0:00:02]} h5 {[%emt 0:00:14]} 26. Rd4 {[%emt 0:02:44]} Kf7 {[%emt 0:01:45]} 27. Rad1 {[%emt 0:00:43]} Ke7 {[%emt 0:00:07]} 28. Kh2 {[%emt 0:00:30]} Rf8 {[%emt 0:00:25]} 29. Kg3 {[%emt 0:01:10]} Rf7 {[%emt 0:01:22]} 30. R1d2 {[%emt 0:04:16]} Rff8 {[%emt 0:00:05]} 31. Bd1 {[%emt 0:04:16]} Rfd8 {[%emt 0:01:24]} 32. Bc2 {[%emt 0:00:42]} Rd7 {[%emt 0:00:04]} 33. f3 {[%emt 0:00:03]} Rad8 {[%emt 0:00:09]} 34. Kf2 {[%emt 0:01:43]} Ke8 {[%emt 0:03:53]} 35. Ke2 {[%emt 0:03:47]} Ke7 {[%emt 0:00:09]} 36. Kd1 {[%emt 0:00:49]} Ke8 {[%emt 0:00:53]} 37. Kc1 {[%emt 0:00:08]} Ke7 {[%emt 0:00:03]} 38. Rd1 {[%emt 0:01:35]} Rf8 {[%emt 0:00:55]} 39. Kb1 {[%emt 0:03:03]} Rfd8 {[%emt 0:00:08]} 40. Ka2 {[%emt 0:00:23]} Rf8 {[%emt 0:00:08]} 41. b3 {[%emt 0:37:36]} Rfd8 {[%emt 0:34:56]} 42. Rb1 {[%emt 0:01:20]} Ra8 {[%emt 0:00:48]} 43. Kb2 {[%emt 0:00:56]} Ra7 {[%emt 0:01:28]} 44. Ra1 {[%emt 0:00:38]} Ra8 {[%emt 0:00:24]} 45. Bd1 {[%emt 0:00:19]} Rdd8 {[%emt 0:01:23]} 46. f4 {[%emt 0:00:39]} Ra7 {[%emt 0:00:42]} 47. Be2 {[%emt 0:00:34]} Rda8 {[%emt 0:00:16]} 48. Rdd1 {[%emt 0:00:13]} Ra5 {[%emt 0:00:54]} 49. Rdb1 {[%emt 0:00:00]} Kd8 {[%emt 0:00:00]} 50. Bd1 {[%emt 0:00:00]} Kc7 {[%emt 0:00:00]} 51. Ra2 {[%emt 0:00:00]} R5a7 {[%emt 0:00:00]} 52. Rba1 {[%emt 0:00:00]} Ra5 {[%emt 0:00:00]} 53. Rc1 1/2-1/2

[Event "ISR-chT 2018"]
[Site "Israel"]
[Date "2018.01.05"]
[Round "1"]
[White "Haimovich, Tal"]
[Black "Alex, Thomas K"]
[Result "1/2-1/2"]
[ECO "B31"]
[WhiteElo "2401"]
[BlackElo "1982"]
[PlyCount "180"]
[EventDate "2018.??.??"]
[EventType "team-tourn"]
[EventCountry "ISR"]
[TimeControl "40/5400+30:1800+30"]
[WhiteClock "0:07:54"]
[BlackClock "0:02:50"]

1. e4 {[%emt 0:00:00]} c5 {[%emt 0:00:00]} 2. Nf3 {[%emt 0:00:00]} Nc6 {[%emt 0:00:05]} 3. Bb5 {[%emt 0:01:17]} g6 {[%emt 0:00:27]} 4. O-O {[%emt 0:00:06]} Bg7 {[%emt 0:00:15]} 5. Re1 {[%emt 0:00:08]} Nf6 {[%emt 0:00:23]} 6. e5 {[%emt 0:00:52]} Ng4 {[%emt 0:01:27]} 7. Bxc6 {[%emt 0:07:49]} dxc6 {[%emt 0:01:09]} 8. Nc3 {[%emt 0:03:15]} Qc7 {[%emt 0:05:53]} 9. d4 {[%emt 0:14:35]} O-O {[%emt 0:09:23]} 10. Bf4 {[%emt 0:09:44]} cxd4 {[%emt 0:04:51]} 11. Qxd4 {[%emt 0:00:35]} Rd8 {[%emt 0:00:38]} 12. Qc5 {[%emt 0:02:03]} Be6 {[%emt 0:22:45]} 13. Bg5 {[%emt 0:15:18]} b6 {[%emt 0:06:51]} 14. Qxe7 {[%emt 0:02:13]} Rd7 {[%emt 0:00:02]} 15. Qb4 {[%emt 0:11:00]} Nxe5 {[%emt 0:04:03]} 16. Nxe5 {[%emt 0:03:32]} Bxe5 {[%emt 0:00:03]} 17. Qh4 {[%emt 0:00:07]} Bf5 {[%emt 0:04:50]} 18. Rad1 {[%emt 0:00:09]} Rxd1 {[%emt 0:05:13]} 19. Nxd1 {[%emt 0:00:07]} Be6 {[%emt 0:03:40]} 20. Nc3 {[%emt 0:03:15]} Bf5 {[%emt 0:03:47]} 21. Bf6 {[%emt 0:01:30]} Bxf6 {[%emt 0:03:51]} 22. Qxf6 {[%emt 0:00:05]} Rf8 {[%emt 0:03:13]} 23. h4 {[%emt 0:12:45]} h5 {[%emt 0:02:41]} 24. Re5 {[%emt 0:06:07]} Qd7 {[%emt 0:03:48]} 25. Re7 {[%emt 0:01:29]} Qd2 {[%emt 0:01:43]} 26. Re3 {[%emt 0:02:18]} Qc1+ {[%emt 0:02:31]} 27. Kh2 {[%emt 0:00:07]} Qxb2 {[%emt 0:00:03]} 28. Qxc6 {[%emt 0:01:27]} Qxc2 {[%emt 0:01:05]} 29. Kg3 {[%emt 0:01:03]} Be6 {[%emt 0:02:09]} 30. Qd6 {[%emt 0:00:53]} Rc8 {[%emt 0:02:08]} 31. Ne4 {[%emt 0:00:32]} Qc7 {[%emt 0:00:28]} 32. Nf6+ {[%emt 0:00:44]} Kh8 {[%emt 0:00:13]} 33. Qxc7 {[%emt 0:00:43]} Rxc7 {[%emt 0:00:02]} 34. a3 {[%emt 0:00:05]} Rc4 {[%emt 0:01:26]} 35. f3 {[%emt 0:00:14]} Kg7 {[%emt 0:02:00]} 36. Ne4 {[%emt 0:00:14]} b5 {[%emt 0:00:56]} 37. Ng5 {[%emt 0:00:21]} Kf6 {[%emt 0:01:34]} 38. Rd3 {[%emt 0:00:06]} Ra4 {[%emt 0:01:04]} 39. Ne4+ {[%emt 0:00:43]} Ke5 {[%emt 0:00:52]} 40. Nc5 {[%emt 0:01:50]} Rc4 {[%emt 0:00:38]} 41. Nb3 {[%emt 0:06:08]} Rc2 {[%emt 0:03:54]} 42. Nd4 {[%emt 0:02:14]} Rc5 {[%emt 0:04:27]} 43. Kf2 {[%emt 0:02:15]} Bc4 {[%emt 0:02:13]} 44. Rd2 {[%emt 0:00:24]} f5 {[%emt 0:01:58]} 45. g3 {[%emt 0:00:49]} f4 {[%emt 0:00:23]} 46. gxf4+ {[%emt 0:05:43]} Kxf4 {[%emt 0:00:04]} 47. Rc2 {[%emt 0:00:21]} Rd5 {[%emt 0:02:08]} 48. Ne6+ {[%emt 0:00:49]} Ke5 {[%emt 0:01:07]} 49. Ng5 {[%emt 0:02:23]} Rd4 {[%emt 0:03:41]} 50. Kg3 {[%emt 0:05:24]} a5 {[%emt 0:00:55]} 51. Ne4 {[%emt 0:02:07]} Bd3 {[%emt 0:02:52]} 52. Rc5+ {[%emt 0:04:55]} Rd5 {[%emt 0:00:22]} 53. Rc8 {[%emt 0:00:09]} Bxe4 {[%emt 0:01:28]} 54. Re8+ {[%emt 0:00:04]} Kd4 {[%emt 0:00:16]} 55. fxe4 {[%emt 0:00:18]} Re5 {[%emt 0:00:25]} 56. Ra8 {[%emt 0:00:11]} Rxe4 {[%emt 0:04:25]} 57. Rxa5 {[%emt 0:00:07]} Kc4 {[%emt 0:00:10]} 58. Ra6 {[%emt 0:00:15]} Rg4+ {[%emt 0:00:11]} 59. Kh3 {[%emt 0:00:15]} Rg1 {[%emt 0:00:36]} 60. Rc6+ {[%emt 0:01:03]} Kd4 {[%emt 0:00:33]} 61. Ra6 {[%emt 0:01:55]} Ra1 {[%emt 0:00:40]} 62. Ra5 {[%emt 0:00:54]} Kc4 {[%emt 0:00:18]} 63. Kg3 {[%emt 0:00:19]} Rh1 {[%emt 0:00:56]} 64. Ra6 {[%emt 0:00:28]} Rg1+ {[%emt 0:00:15]} 65. Kh3 {[%emt 0:00:19]} Rg4 {[%emt 0:00:13]} 66. Rc6+ {[%emt 0:00:41]} Kd5 {[%emt 0:00:19]} 67. Rc3 {[%emt 0:01:02]} Rc4 {[%emt 0:00:35]} 68. Rb3 {[%emt 0:01:21]} Kc5 {[%emt 0:00:13]} 69. Rg3 {[%emt 0:01:18]} Rc2 {[%emt 0:00:11]} 70. Rxg6 {[%emt 0:00:31]} Rc3+ {[%emt 0:00:11]} 71. Kg2 {[%emt 0:00:10]} Rxa3 {[%emt 0:00:21]} 72. Rg5+ {[%emt 0:00:02]} Kc4 {[%emt 0:00:12]} 73. Rxh5 {[%emt 0:00:01]} b4 {[%emt 0:00:14]} 74. Rh8 {[%emt 0:00:26]} b3 {[%emt 0:00:20]} 75. Rb8 {[%emt 0:01:02]} Ra5 {[%emt 0:00:50]} 76. Kg3 {[%emt 0:01:13]} Rb5 {[%emt 0:00:19]} 77. Rc8+ {[%emt 0:00:01]} Kb4 {[%emt 0:00:49]} 78. Rc1 {[%emt 0:00:58]} b2 {[%emt 0:00:13]} 79. Rb1 {[%emt 0:00:24]} Kc3 {[%emt 0:00:08]} 80. Kg4 {[%emt 0:00:06]} Kc2 {[%emt 0:00:14]} 81. Rxb2+ {[%emt 0:00:20]} Rxb2 82. h5 {[%emt 0:00:19]} Kd3 {[%emt 0:03:06]} 83. Kf5 {[%emt 0:00:36]} Rh2 {[%emt 0:00:28]} 84. Kg6 {[%emt 0:00:07]} Ke4 {[%emt 0:00:14]} 85. h6 {[%emt 0:00:07]} Ke5 {[%emt 0:00:51]} 86. h7 {[%emt 0:00:34]} Ke6 {[%emt 0:02:10]} 87. Kg7 {[%emt 0:00:04]} Rg2+ {[%emt 0:00:13]} 88. Kf8 {[%emt 0:01:23]} Rh2 {[%emt 0:01:01]} 89. Kg7 {[%emt 0:00:05]} Rg2+ {[%emt 0:00:44]} 90. Kf8 {[%emt 0:00:09]} Ke5 1/2-1/2

[Event "ISR-chT 2018"]
[Site "Israel"]
[Date "2018.01.05"]
[Round "1"]
[White "Bakalchuk, Johnatan"]
[Black "Gurbanov, Andrei"]
[Result "1-0"]
[ECO "C44"]
[WhiteElo "2400"]
[BlackElo "2339"]
[PlyCount "115"]
[EventDate "2018.??.??"]
[EventType "team-tourn"]
[EventCountry "ISR"]
[TimeControl "40/5400+30:1800+30"]
[WhiteClock "0:12:39"]
[BlackClock "0:07:35"]

1. e4 {[%emt 0:00:00]} e5 {[%emt 0:00:00]} 2. Nf3 {[%emt 0:00:00]} Nc6 {[%emt 0:00:00]} 3. d4 {[%emt 0:00:00]} exd4 {[%emt 0:00:00]} 4. Nxd4 {[%emt 0:00:01]} Bb4+ {[%emt 0:00:00]} 5. c3 {[%emt 0:00:05]} Bc5 {[%emt 0:00:00]} 6. Be3 {[%emt 0:00:17]} Bb6 {[%emt 0:00:03]} 7. Nf5 {[%emt 0:00:17]} g6 {[%emt 0:01:17]} 8. Bxb6 {[%emt 0:00:08]} axb6 {[%emt 0:01:51]} 9. Ne3 {[%emt 0:00:08]} Nf6 {[%emt 0:00:58]} 10. f3 {[%emt 0:00:19]} O-O {[%emt 0:02:03]} 11. c4 {[%emt 0:02:54]} Nh5 {[%emt 0:15:01]} 12. Qd2 {[%emt 0:00:46]} d6 {[%emt 0:09:46]} 13. Nc3 {[%emt 0:00:31]} Ra5 {[%emt 0:00:27]} 14. Bd3 {[%emt 0:18:06]} Ne5 {[%emt 0:04:13]} 15. O-O {[%emt 0:11:56]} Nf4 {[%emt 0:03:11]} 16. Bc2 {[%emt 0:03:28]} Be6 {[%emt 0:07:33]} 17. Kh1 {[%emt 0:05:22]} Nh5 {[%emt 0:04:02]} 18. b3 {[%emt 0:07:47]} Qh4 {[%emt 0:13:33]} 19. Qf2 {[%emt 0:04:53]} Qxf2 {[%emt 0:02:38]} 20. Rxf2 {[%emt 0:00:02]} g5 {[%emt 0:04:02]} 21. g3 {[%emt 0:01:58]} Ng6 {[%emt 0:02:10]} 22. Ncd5 {[%emt 0:07:28]} Bxd5 {[%emt 0:04:32]} 23. Nxd5 {[%emt 0:00:54]} c6 {[%emt 0:10:23]} 24. Nxb6 {[%emt 0:02:03]} Nf6 {[%emt 0:01:55]} 25. Rd2 {[%emt 0:03:46]} Rd8 {[%emt 0:00:45]} 26. Kg2 {[%emt 0:02:21]} Ne5 {[%emt 0:02:00]} 27. a4 {[%emt 0:06:33]} g4 {[%emt 0:00:59]} 28. fxg4 {[%emt 0:01:01]} Nexg4 {[%emt 0:00:47]} 29. Re1 {[%emt 0:01:03]} Rh5 {[%emt 0:04:05]} 30. h3 {[%emt 0:01:24]} Ne5 {[%emt 0:00:37]} 31. c5 {[%emt 0:02:42]} d5 {[%emt 0:01:41]} 32. exd5 {[%emt 0:00:46]} cxd5 {[%emt 0:00:04]} 33. g4 {[%emt 0:08:59]} Rg5 {[%emt 0:00:09]} 34. Bf5 {[%emt 0:00:41]} Nc6 {[%emt 0:01:17]} 35. h4 {[%emt 0:01:24]} Rg7 {[%emt 0:00:02]} 36. Kf3 {[%emt 0:01:12]} Kh8 {[%emt 0:05:07]} 37. g5 {[%emt 0:01:15]} Ne4 {[%emt 0:00:06]} 38. Rxd5 {[%emt 0:01:59]} Nd2+ {[%emt 0:00:48]} 39. Kg4 {[%emt 0:00:54]} Nxb3 {[%emt 0:00:25]} 40. Rxd8+ {[%emt 0:01:43]} Nxd8 {[%emt 0:00:01]} 41. Nd7 {[%emt 0:32:05]} Ne6 {[%emt 0:30:11]} 42. Bxe6 {[%emt 0:01:05]} fxe6 {[%emt 0:00:02]} 43. Rd1 {[%emt 0:00:00]} Re7 {[%emt 0:00:00]} 44. h5 {[%emt 0:00:00]} h6 {[%emt 0:00:00]} 45. gxh6 {[%emt 0:00:00]} e5 {[%emt 0:00:00]} 46. Nf8 {[%emt 0:00:00]} Re8 {[%emt 0:00:00]} 47. Rf1 {[%emt 0:00:00]} Nxc5 {[%emt 0:00:00]} 48. Rf7 {[%emt 0:00:00]} Kg8 {[%emt 0:00:00]} 49. h7+ {[%emt 0:00:00]} Kxf7 {[%emt 0:00:00]} 50. h8=Q {[%emt 0:00:00]} Rxf8 {[%emt 0:00:00]} 51. Qxe5 {[%emt 0:00:00]} Ne6 {[%emt 0:00:00]} 52. h6 {[%emt 0:00:00]} Rg8+ {[%emt 0:00:00]} 53. Kh5 {[%emt 0:00:00]} Rg1 {[%emt 0:00:00]} 54. Qd5 {[%emt 0:00:00]} Rg3 {[%emt 0:00:00]} 55. h7 {[%emt 0:00:00]} Rh3+ {[%emt 0:00:00]} 56. Kg4 {[%emt 0:00:00]} Rh6 {[%emt 0:00:00]} 57. Qxb7+ {[%emt 0:00:00]} Kf6 {[%emt 0:00:00]} 58. h8=Q+ {[%emt 0:01:09]} 1-0

[Event "ISR-chT 2018"]
[Site "Israel"]
[Date "2018.01.05"]
[Round "1"]
[White "Ben Artzi, Ido"]
[Black "Aharonovich, Itamar"]
[Result "1-0"]
[ECO "B47"]
[WhiteElo "2390"]
[BlackElo "2276"]
[PlyCount "49"]
[EventDate "2018.??.??"]
[EventType "team-tourn"]
[EventCountry "ISR"]
[TimeControl "40/5400+30:1800+30"]

1. e4 c5 2. Nf3 e6 3. d4 cxd4 4. Nxd4 Nc6 5. Nc3 Qc7 6. g4 a6 7. h4 b5 8. Nxc6 Qxc6 9. Bg2 Bb7 10. Be3 Rc8 11. a3 Ne7 12. Qd2 Ng6 13. f4 Be7 14. O-O-O Nxh4 15. Rxh4 Bxh4 16. g5 f6 17. e5 Qc7 18. Bb6 Qxb6 19. Qxd7+ Kf8 20. Bxb7 Re8 21. Bc6 Qb8 22. Ne4 Qc8 23. Qxe8+ Qxe8 24. Bxe8 f5 25. Bc6 1-0

[Event "ISR-chT 2018"]
[Site "Israel"]
[Date "2018.01.05"]
[Round "1"]
[White "Bitensky, Igor"]
[Black "Hochman, Elnatan"]
[Result "1-0"]
[ECO "A48"]
[WhiteElo "2355"]
[BlackElo "2075"]
[PlyCount "99"]
[EventDate "2018.??.??"]
[EventType "team-tourn"]
[EventCountry "ISR"]
[TimeControl "40/5400+30:1800+30"]

1. Nf3 g6 2. d4 Nf6 3. Bf4 Bg7 4. e3 d6 5. Be2 O-O 6. O-O c6 7. h3 Nbd7 8. Bh2 Re8 9. c3 h6 10. Nbd2 Nf8 11. a4 g5 12. Nc4 Bf5 13. Bd3 Bxd3 14. Qxd3 Ng6 15. a5 g4 16. hxg4 Nxg4 17. Bg3 Qd7 18. Rfd1 d5 19. Nce5 N4xe5 20. dxe5 e6 21. Ra4 h5 22. Qe2 b5 23. axb6 axb6 24. Rda1 Qb7 25. Nh4 Rxa4 26. Rxa4 b5 27. Ra1 Nxh4 28. Bxh4 Bxe5 29. Qxh5 Bg7 30. e4 Ra8 31. Re1 Kf8 32. e5 Ke8 33. Re3 Bf8 34. Rf3 Ra1+ 35. Kh2 Ra4 36. b4 c5 37. Rf6 Qd7 38. bxc5 Rc4 39. Bg5 Rxc5 40. Rf3 Qc7 41. Qh8 Rc4 42. Rg3 Qc5 43. Be3 Qe7 44. Bg5 Qc5 45. Be3 Qe7 46. f4 Rxc3 47. f5 Qa3 48. fxe6 Rxe3 49. exf7+ Ke7 50. Qh4+ 1-0

[Event "ISR-chT 2018"]
[Site "Israel"]
[Date "2018.01.05"]
[Round "1"]
[White "Moskovich, Daniel"]
[Black "Drori, Saar"]
[Result "1/2-1/2"]
[ECO "A49"]
[WhiteElo "2147"]
[BlackElo "2380"]
[PlyCount "56"]
[EventDate "2018.??.??"]
[EventType "team-tourn"]
[EventCountry "ISR"]
[TimeControl "40/5400+30:1800+30"]

1. d4 Nf6 2. Nf3 g6 3. g3 Bg7 4. Bg2 d5 5. O-O O-O 6. Nbd2 c6 7. Re1 Bf5 8. Nh4 Be6 9. c3 Na6 10. e4 dxe4 11. Nxe4 Nxe4 12. Bxe4 Qb6 13. Bxg6 hxg6 14. Nxg6 fxg6 15. Rxe6 Bf6 16. Bh6 Qxb2 17. Rb1 Qxa2 18. Qd3 Rf7 19. Re2 Qd5 20. Qxg6+ Kh8 21. Rxb7 Rh7 22. Bf4 Rg8 23. Qe4 Qh5 24. f3 Qa5 25. Qxc6 Rg6 26. Qc8+ Rg8 27. Qc6 Rg6 28. Qc8+ Rg8 1/2-1/2

[Event "ISR-chT 2018"]
[Site "Israel"]
[Date "2018.01.05"]
[Round "1"]
[White "Nakhaenko, Viktor M"]
[Black "Afek, Yochanan"]
[Result "1-0"]
[ECO "D20"]
[WhiteElo "2096"]
[BlackElo "2270"]
[PlyCount "65"]
[EventDate "2018.??.??"]
[EventType "team-tourn"]
[EventCountry "ISR"]
[TimeControl "40/5400+30:1800+30"]
[WhiteClock "0:02:39"]
[BlackClock "0:06:56"]

1. d4 {[%emt 0:00:00]} d5 {[%emt 0:01:11]} 2. c4 {[%emt 0:00:00]} dxc4 {[%emt 0:00:03]} 3. e4 {[%emt 0:00:00]} c5 {[%emt 0:00:05]} 4. d5 {[%emt 0:00:08]} e6 {[%emt 0:00:36]} 5. Nc3 {[%emt 0:00:24]} exd5 {[%emt 0:01:01]} 6. Nxd5 {[%emt 0:00:07]} Ne7 {[%emt 0:05:29]} 7. Bg5 {[%emt 0:17:06]} Qa5+ {[%emt 0:11:48]} 8. Bd2 {[%emt 0:00:48]} Qd8 {[%emt 0:00:05]} 9. Bxc4 {[%emt 0:00:13]} Nxd5 {[%emt 0:01:00]} 10. Bxd5 {[%emt 0:00:31]} Be7 {[%emt 0:00:58]} 11. Qa4+ {[%emt 0:07:03]} Nc6 {[%emt 0:05:26]} 12. Bxc6+ {[%emt 0:04:16]} bxc6 {[%emt 0:00:05]} 13. Qxc6+ {[%emt 0:06:23]} Bd7 {[%emt 0:00:05]} 14. Qd5 {[%emt 0:00:09]} O-O {[%emt 0:05:00]} 15. Ne2 {[%emt 0:07:56]} Qc8 {[%emt 0:06:04]} 16. Bc3 {[%emt 0:02:20]} Be6 {[%emt 0:18:15]} 17. Qd3 {[%emt 0:04:36]} Rd8 {[%emt 0:04:32]} 18. Qg3 {[%emt 0:01:02]} f6 {[%emt 0:01:16]} 19. O-O {[%emt 0:04:36]} Bf7 {[%emt 0:06:21]} 20. Nf4 {[%emt 0:07:28]} Qc6 {[%emt 0:04:25]} 21. Rfe1 {[%emt 0:04:30]} Bf8 {[%emt 0:01:55]} 22. Re3 {[%emt 0:05:19]} Rd7 {[%emt 0:05:16]} 23. Rae1 {[%emt 0:04:37]} Bxa2 {[%emt 0:02:11]} 24. Nh5 {[%emt 0:00:42]} Kh8 {[%emt 0:02:40]} 25. e5 {[%emt 0:07:17]} fxe5 {[%emt 0:00:43]} 26. Rxe5 {[%emt 0:00:08]} Rf7 {[%emt 0:03:59]} 27. Rg5 {[%emt 0:03:35]} Qh6 {[%emt 0:02:04]} 28. Re4 {[%emt 0:04:45]} Rd8 {[%emt 0:00:12]} 29. h3 {[%emt 0:00:11]} Rd5 {[%emt 0:00:33]} 30. Rxg7 {[%emt 0:02:53]} Rd1+ {[%emt 0:02:52]} 31. Kh2 {[%emt 0:00:04]} Rxg7 {[%emt 0:00:47]} 32. Re8 {[%emt 0:00:16]} Rd4 {[%emt 0:06:24]} 33. Rxf8+ {[%emt 0:00:11]} 1-0

[Event "ISR-chT 2018"]
[Site "Israel"]
[Date "2018.01.19"]
[Round "3"]
[White "Haimovich, Tal"]
[Black "Galburd, Yan"]
[Result "1-0"]
[ECO "C48"]
[WhiteElo "2401"]
[BlackElo "2344"]
[Annotator "NA"]
[PlyCount "145"]
[EventDate "2018.??.??"]
[EventType "team-tourn"]
[EventCountry "ISR"]
[SourceTitle "playchess.com"]
[Source "ChessBase"]
[SourceQuality "1"]
[TimeControl "40/5400+30:1800+30"]

1. e4 {[%emt 0:00:00]} e5 {[%emt 0:01:32]} 2. Nf3 {[%emt 0:02:09]} Nf6 {[%emt 0:01:10]} 3. Nc3 {[%emt 0:02:20]} Nc6 {[%emt 0:00:45]} 4. Bb5 {[%emt 0:00:05]} Bc5 {[%emt 0:01:40]} 5. O-O {[%emt 0:01:49]} O-O {[%emt 0:00:58]} 6. Bxc6 {[%emt 0:12:46]} dxc6 {[%emt 0:02:01]} 7. Nxe5 {[%emt 0:08:05] C48: Four Knights: 4 Bb5, replies other than 4...Bb4} Re8 {[%emt 0:04:59]} 8. Nf3 {[%emt 0:11:25]} Nxe4 {[%emt 0:00:49]} 9. Nxe4 {[%emt 0:01:56]} Rxe4 {[%emt 0:00:04]} 10. d3 {[%emt 0:03:53]} Re8 {[%emt 0:02:00]} 11. Ng5 $146 {[%emt 0:03:17]} ({Find the theoretical novelty and annotate with similar games:} 11. d4 Bf8 12. h3 Be6 13. Bf4 Bd5 14. Ne5 f6 {1-0 (45) Risting,E (2335)-Holm,K (2433) Kristiansund 2017}) 11... Qd5 {[%emt 0:13:03]} 12. Ne4 {[%emt 0:02:34]} Bb6 {[%emt 0:05:02]} 13. Bf4 {[%emt 0:03:44]} Bf5 {[%emt 0:12:48]} 14. Nc3 {[%emt 0:02:10]} Qd7 {[%emt 0:02:17]} 15. Qf3 {[%emt 0:00:18]} Re6 {[%emt 0:06:02]} 16. Be3 {[%emt 0:14:40]} Rg6 {[%emt 0:00:46]} 17. Rfe1 {[%emt 0:11:20]} Bh3 {[%emt 0:10:32]} 18. g3 {[%emt 0:00:09]} Rf6 {[%emt 0:00:47]} 19. Qe4 {[%emt 0:06:25]} Be6 {[%emt 0:06:37]} 20. a4 {[%emt 0:01:49]} Rf5 {[%emt 0:05:06]} 21. b4 {[%emt 0:02:18]} a5 {[%emt 0:01:32]} 22. b5 {[%emt 0:00:53]} h6 {[%emt 0:02:51]} 23. Rab1 {[%emt 0:01:19]} Bc5 {[%emt 0:08:47]} 24. g4 {[%emt 0:01:12]} Rg5 {[%emt 0:01:26]} 25. Bxg5 {[%emt 0:00:09]} hxg5 {[%emt 0:00:11]} 26. bxc6 {[%emt 0:00:32]} bxc6 {[%emt 0:00:11]} 27. h3 {[%emt 0:00:46]} Rd8 {[%emt 0:04:04]} 28. Ne2 {[%emt 0:02:48]} Qd6 {[%emt 0:03:20]} 29. d4 {[%emt 0:00:36]} Bb6 {[%emt 0:00:44]} 30. c3 {[%emt 0:01:15]} c5 {[%emt 0:00:48]} 31. Qe5 {[%emt 0:00:32]} Qxe5 {[%emt 0:02:22]} 32. dxe5 {[%emt 0:00:02]} Rd2 {[%emt 0:00:20]} 33. Ng3 {[%emt 0:00:18]} Ra2 {[%emt 0:00:47]} 34. Ra1 {[%emt 0:00:19]} Rc2 {[%emt 0:00:18]} 35. Rec1 {[%emt 0:01:20]} Rb2 {[%emt 0:00:20]} 36. Re1 {[%emt 0:01:47]} c4 {[%emt 0:00:42]} 37. Re2 {[%emt 0:00:20]} Rb3 {[%emt 0:00:12]} 38. Rc1 {[%emt 0:00:54]} Ra3 {[%emt 0:00:40]} 39. Ne4 {[%emt 0:00:16]} Rxa4 {[%emt 0:00:33]} 40. Nxg5 {[%emt 0:00:21]} Ra3 {[%emt 0:30:48]} 41. Rd2 {[%emt 0:03:52]} Kf8 {[%emt 0:00:00]} 42. Rd8+ {[%emt 0:08:28]} Ke7 {[%emt 0:00:00]} 43. Rcd1 {[%emt 0:00:31]} f6 {[%emt 0:00:00]} 44. exf6+ {[%emt 0:01:54]} Kxf6 {[%emt 0:00:00]} 45. Nxe6 {[%emt 0:04:31]} Kxe6 {[%emt 0:00:00]} 46. Re1+ {[%emt 0:01:17]} Kf7 {[%emt 0:00:00]} 47. Rd7+ {[%emt 0:00:23]} Kf6 {[%emt 0:00:00]} 48. g5+ {[%emt 0:02:17]} Kg6 {[%emt 0:00:00]} 49. Ree7 {[%emt 0:02:26]} Rxc3 $18 {[%emt 0:00:00]} (49... Kxg5 {keeps fighting.} 50. Rxg7+ Kf5) 50. Rxg7+ {[%emt 0:00:26]} Kf5 {[%emt 0:00:00]} 51. Rdf7+ {[%emt 0:02:06]} Ke5 {[%emt 0:00:00]} 52. Kg2 {[%emt 0:01:21]} Rd3 {[%emt 0:00:00]} 53. Rf3 {[%emt 0:03:54]} Rd8 {[%emt 0:00:00]} 54. g6 {[%emt 0:00:23]} c3 {[%emt 0:01:10]} 55. Rxc3 {[%emt 0:00:30]} Kf6 {[%emt 0:00:12]} 56. Rf7+ {[%emt 0:00:16]} Kxg6 {[%emt 0:00:05]} 57. Rf4 {[%emt 0:00:09]} Kg5 {[%emt 0:01:50]} 58. Rcf3 {[%emt 0:00:27]} Kh6 {[%emt 0:01:30]} 59. Rg3 {[%emt 0:00:59]} Kh5 {[%emt 0:00:35]} 60. h4 {[%emt 0:00:57]} Kh6 {[%emt 0:00:53]} 61. Kh3 {[%emt 0:00:56]} Bd4 {[%emt 0:02:07]} 62. Ra3 {[%emt 0:01:19]} Bb6 {[%emt 0:01:13]} 63. Rc3 {[%emt 0:00:39]} Rd2 {[%emt 0:00:35]} 64. Rc6+ {[%emt 0:00:48]} Kh7 {[%emt 0:00:24]} 65. f3 {[%emt 0:01:00]} Ra2 {[%emt 0:01:00]} 66. h5 {[%emt 0:01:09]} a4 {[%emt 0:00:44]} 67. h6 {[%emt 0:00:38]} Ra1 {[%emt 0:00:15]} 68. Kh2 {[%emt 0:00:51]} Bg1+ {[%emt 0:01:25]} 69. Kg2 {[%emt 0:00:11]} Be3 {[%emt 0:00:31]} 70. Rf7+ {[%emt 0:00:22]} Kh8 {[%emt 0:00:26]} 71. Rcxc7 {[%emt 0:00:32]} Rg1+ {[%emt 0:00:36]} 72. Kh2 {[%emt 0:00:11]} Bxh6 {[%emt 0:00:21]} 73. Kxg1 {[%emt 0:00:16]} 1-0

[Event "ISR-chT 2018"]
[Site "Israel"]
[Date "2018.01.19"]
[Round "3"]
[White "Shachar, Ehud"]
[Black "Parkhov, Yair"]
[Result "0-1"]
[ECO "C18"]
[WhiteElo "2401"]
[BlackElo "2372"]
[Annotator "NA"]
[PlyCount "70"]
[EventDate "2018.??.??"]
[EventType "team-tourn"]
[EventCountry "ISR"]
[SourceTitle "playchess.com"]
[Source "ChessBase"]
[SourceQuality "1"]
[TimeControl "40/5400+30:1800+30"]

1. e4 e6 2. d4 d5 3. Nc3 Bb4 4. e5 Ne7 5. a3 Bxc3+ 6. bxc3 c5 7. Qg4 Ng6 8. h4 h5 9. Qd1 Qc7 10. Nf3 b6 11. a4 Ba6 12. a5 Bxf1 13. Kxf1 Qc6 14. Rh3 $11 Nd7 15. Ng5 Ne7 16. axb6 axb6 17. Rxa8+ Qxa8 18. dxc5 Qa6+ 19. Kg1 Nxe5 20. cxb6 Qxb6 21. c4 Ng4 22. Be3 Qc7 23. Qd4 O-O 24. Qd3 Nf5 25. cxd5 Ra8 26. Kf1 Ra1+ 27. Ke2 Qa5 28. Bd2 Qb6 29. Be1 Nd4+ 30. Kf1 Qb1 31. Qc3 Qb5+ 32. Rd3 Nh2+ 33. Kg1 Ne2+ 34. Kxh2 Nxc3 35. Rxc3 Qb8+ 0-1